[Event "NJSK 2024 C"]
[Site "Groningen, Netherlands"]
[Date "2024.05.01"]
[Round "6.7"]
[White "De Wit, Evan"]
[Black "Tetova, Amir"]
[Result "0-1"]
[TimeControl "90min/40moves + 30min + 30sec/move"]
[WhiteElo "1769"]
[BlackElo "1767"]

1. d4 {[%clk 01:30:58]} {[%emt 00:00:02]} Nf6 {[%clk 01:28:03]} {[%emt
00:02:58]} 2. Bf4 {[%clk 01:31:22]} {[%emt 00:00:06]} g6 {[%clk 01:28:27]}
{[%emt 00:00:06]} 3. Nc3 {[%clk 01:31:47]} {[%emt 00:00:04]} Bg7 {[%clk
01:28:49]} {[%emt 00:00:08]} 4. e4 {[%clk 01:32:11]} {[%emt 00:00:05]} d6
{[%clk 01:29:05]} {[%emt 00:00:15]} 5. Qd2 {[%clk 01:32:33]} {[%emt 00:00:08]}
O-O {[%clk 01:29:12]} {[%emt 00:00:24]} 6. O-O-O {[%clk 01:32:55]} {[%emt
00:00:07]} Nbd7 {[%clk 01:28:55]} {[%emt 00:00:48]} 7. e5 {[%clk 01:32:30]}
{[%emt 00:00:55]} Nh5 {[%clk 01:25:57]} {[%emt 00:03:28]} 8. Bh6 {[%clk
01:32:22]} {[%emt 00:00:36]} dxe5 {[%clk 01:21:14]} {[%emt 00:05:15]} 9. Bxg7
{[%clk 01:32:39]} {[%emt 00:00:13]} Nxg7 {[%clk 01:21:32]} {[%emt 00:00:12]} 10.
dxe5 {[%clk 01:32:54]} {[%emt 00:00:14]} c6 {[%clk 01:21:22]} {[%emt 00:00:40]}
11. g4 {[%clk 01:31:24]} {[%emt 00:02:00]} Qc7 {[%clk 01:21:31]} {[%emt
00:00:21]} 12. f4 {[%clk 01:31:04]} {[%emt 00:00:49]} Nb6 {[%clk 01:18:36]}
{[%emt 00:03:27]} 13. Be2 {[%clk 01:30:23]} {[%emt 00:01:10]} Be6 {[%clk
01:17:13]} {[%emt 00:01:53]} 14. Nh3 {[%clk 01:26:59]} {[%emt 00:03:54]} Rad8
{[%clk 01:09:24]} {[%emt 00:08:19]} 15. Qe3 {[%clk 01:26:36]} {[%emt 00:00:52]}
Rxd1+ {[%clk 01:06:06]} {[%emt 00:03:50]} 16. Rxd1 {[%clk 01:26:59]} {[%emt
00:00:07]} f5 {[%clk 01:03:47]} {[%emt 00:02:49]} 17. Ng5 {[%clk 01:24:20]}
{[%emt 00:03:08]} fxg4 {[%emt 00:09:26]} 18. Nxe6 {[%clk 01:23:08]} {[%emt
00:01:40]} Nxe6 {[%clk 00:55:14]} {[%emt 00:00:10]} 19. Bxg4 {[%clk 01:21:59]}
{[%emt 00:01:38]} Nxf4 {[%clk 00:52:26]} {[%emt 00:03:18]} 20. Rf1 {[%clk
01:21:23]} {[%emt 00:01:06]} Nc4 {[%clk 00:46:51]} {[%emt 00:06:06]} 21. Qg3
{[%clk 00:36:21]} {[%emt 00:45:30]} Nxe5 {[%clk 00:40:44]} {[%emt 00:06:38]} 22.
Rd1 {[%clk 00:35:40]} {[%emt 00:01:11]} Nxg4 {[%clk 00:37:11]} {[%emt
00:04:03]} 23. Qxg4 {[%clk 00:36:01]} {[%emt 00:00:09]} Rf5 {[%clk 00:34:37]}
{[%emt 00:03:04]} 24. Rg1 {[%clk 00:32:41]} {[%emt 00:03:50]} Qe5 {[%clk
00:31:11]} {[%emt 00:03:56]} 25. Rd1 {[%clk 00:30:01]} {[%emt 00:03:10]} Nd5
{[%clk 00:25:00]} {[%emt 00:06:42]} 26. Nxd5 {[%clk 00:28:03]} {[%emt
00:02:27]} cxd5 {[%clk 00:25:10]} {[%emt 00:00:20]} 27. Qa4 {[%clk 00:23:32]}
{[%emt 00:05:01]} Qe3+ {[%clk 00:23:52]} {[%emt 00:01:46]} 28. Kb1 {[%clk
00:23:49]} {[%emt 00:00:15]} Qe2 {[%clk 00:22:41]} {[%emt 00:01:41]} 29. Qd4
{[%clk 00:17:46]} {[%emt 00:06:33]} e6 {[%clk 00:21:45]} {[%emt 00:01:26]} 30.
b3 {[%clk 00:17:22]} {[%emt 00:00:55]} a6 {[%clk 00:18:10]} {[%emt 00:04:05]}
31. Rc1 {[%clk 00:17:10]} {[%emt 00:00:41]} Qxh2 {[%clk 00:16:42]} {[%emt
00:01:58]} 32. Qc5 {[%clk 00:16:02]} {[%emt 00:01:38]} Qb8 {[%clk 00:14:05]}
{[%emt 00:03:07]} 33. Qe7 {[%clk 00:15:49]} {[%emt 00:00:43]} Qc8 {[%clk
00:13:57]} {[%emt 00:00:36]} 34. Rh1 {[%emt 00:03:07]} Rf7 {[%clk 00:13:46]} 35.
Qd6 {[%clk 00:12:53]} {[%emt 00:01:31]} Qd7 {[%clk 00:11:41]} {[%emt 00:02:37]}
36. Qb8+ {[%clk 00:12:51]} {[%emt 00:00:31]} Rf8 {[%clk 00:12:03]} {[%emt
00:00:08]} 37. Qe5 {[%clk 00:13:06]} {[%emt 00:00:15]} Rf5 {[%clk 00:11:34]}
{[%emt 00:00:58]} 38. Qb8+ {[%clk 00:12:44]} {[%emt 00:00:53]} Kg7 {[%clk
00:11:56]} {[%emt 00:00:08]} 39. Qg3 {[%clk 00:12:01]} {[%emt 00:01:13]} Qf7
{[%clk 00:12:00]} {[%emt 00:00:24]} 40. Qh3 {[%clk 00:11:40]} {[%emt 00:00:51]}
Kg8 {[%clk 00:11:00]} {[%emt 00:01:32]} 41. Qg2 {[%clk 00:11:13]} {[%emt
00:00:56]} Rf2 {[%clk 00:11:16]} {[%emt 00:00:16]} 42. Qh3 {[%clk 00:11:13]}
{[%emt 00:00:28]} h5 {[%clk 00:10:37]} {[%emt 00:01:11]} 43. a3 {[%clk
00:08:29]} {[%emt 00:03:13]} Qf5 {[%clk 00:09:45]} {[%emt 00:01:22]} 44. Qc3
{[%clk 00:08:50]} {[%emt 00:00:09]} Rf1+ {[%clk 00:09:52]} {[%emt 00:00:22]} 45.
Rxf1 {[%clk 00:09:17]} {[%emt 00:00:03]} Qxf1+ {[%clk 00:10:19]} {[%emt
00:00:04]} 46. Kb2 {[%clk 00:09:24]} {[%emt 00:00:22]} Qf7 {[%clk 00:08:39]}
{[%emt 00:02:10]} 47. Ka2 {[%clk 00:09:42]} {[%emt 00:00:14]} h4 {[%clk
00:08:23]} {[%emt 00:00:46]} 48. Qe5 {[%clk 00:09:12]} {[%emt 00:01:00]} h3
{[%clk 00:07:59]} {[%emt 00:00:54]} 49. Qg3 {[%clk 00:08:43]} {[%emt 00:00:58]}
Qf5 {[%clk 00:08:17]} {[%emt 00:00:11]} 50. Qb8+ {[%clk 00:08:56]} {[%emt
00:00:18]} Kg7 {[%clk 00:08:17]} {[%emt 00:00:31]} 51. Qxb7+ {[%clk 00:08:25]}
{[%emt 00:01:01]} Kh6 {[%clk 00:08:33]} {[%emt 00:00:12]} 52. Qc8 {[%clk
00:08:08]} {[%emt 00:00:48]} g5 {[%clk 00:06:45]} {[%emt 00:02:19]} 53. Qh8+
{[%clk 00:07:56]} {[%emt 00:00:40]} Kg6 {[%clk 00:06:57]} {[%emt 00:00:19]} 54.
Qg8+ {[%clk 00:07:58]} {[%emt 00:00:27]} Kh5 {[%clk 00:07:20]} {[%emt
00:00:06]} 55. Qh8+ {[%clk 00:08:06]} {[%emt 00:00:22]} Kg4 {[%clk 00:07:45]}
{[%emt 00:00:05]} 56. Qd4+ {[%clk 00:08:29]} {[%emt 00:00:07]} Kg3 {[%clk
00:07:49]} {[%emt 00:00:22]} 57. Qe3+ {[%clk 00:08:38]} {[%emt 00:00:26]} Kh4
{[%clk 00:07:11]} {[%emt 00:01:06]} 58. Qd4+ {[%clk 00:08:38]} {[%emt
00:00:32]} g4 {[%clk 00:07:23]} {[%emt 00:00:18]} 59. Qh8+ {[%clk 00:08:43]}
{[%emt 00:00:25]} Kg3 {[%clk 00:07:50]} {[%emt 00:00:03]} 60. Qc3+ {[%clk
00:09:02]} {[%emt 00:00:12]} Kg2 {[%clk 00:07:38]} {[%emt 00:00:41]} 61. Qd2
{[%clk 00:08:03]} {[%emt 00:01:29]} Qf2 {[%clk 00:08:00]} {[%emt 00:00:07]} 62.
Qg5 {[%clk 00:07:03]} {[%emt 00:01:31]} Qxc2+ {[%clk 00:08:19]} {[%emt
00:00:11]} 63. Ka1 {[%clk 00:07:26]} {[%emt 00:00:08]} Qd1+ {[%clk 00:07:51]}
{[%emt 00:00:57]} 64. Ka2 {[%clk 00:07:06]} {[%emt 00:00:50]} h2 {[%clk
00:08:15]} {[%emt 00:00:07]} 0-1

[Event "NJSK 2024 C"]
[Site "Groningen, Netherlands"]
[Date "2024.05.01"]
[Round "6.8"]
[White "Guillaumond, Matthieu"]
[Black "Roorda, Cas"]
[Result "0-1"]
[TimeControl "90min/40moves + 30min + 30sec/move"]
[WhiteElo "1945"]
[BlackElo "1828"]

1. e4 {[%clk 01:28:04]} {[%emt 00:00:43]} e6 {[%clk 01:30:56]} {[%emt
00:00:04]} 2. d4 {[%clk 01:28:28]} {[%emt 00:00:06]} d5 {[%clk 01:31:22]}
{[%emt 00:00:04]} 3. Nc3 {[%clk 01:28:54]} {[%emt 00:00:04]} Bb4 {[%clk
01:31:48]} {[%emt 00:00:03]} 4. e5 {[%clk 01:29:19]} {[%emt 00:00:06]} c5
{[%clk 01:32:15]} {[%emt 00:00:03]} 5. a3 {[%clk 01:29:45]} {[%emt 00:00:04]}
Bxc3+ {[%clk 01:32:42]} {[%emt 00:00:03]} 6. bxc3 {[%clk 01:30:13]} {[%emt
00:00:02]} Ne7 {[%clk 01:33:07]} {[%emt 00:00:05]} 7. h4 {[%clk 01:30:23]}
{[%emt 00:00:20]} Qc7 {[%clk 01:33:31]} {[%emt 00:00:06]} 8. Nf3 {[%clk
01:30:46]} {[%emt 00:00:07]} b6 {[%clk 01:33:18]} {[%emt 00:00:44]} 9. h5
{[%clk 01:30:50]} {[%emt 00:00:25]} h6 {[%clk 01:33:43]} {[%emt 00:00:05]} 10.
a4 {[%clk 01:30:43]} {[%emt 00:00:38]} Ba6 {[%clk 01:33:44]} {[%emt 00:00:28]}
11. Bb5+ {[%clk 01:31:06]} {[%emt 00:00:07]} Bxb5 {[%clk 01:34:10]} {[%emt
00:00:05]} 12. axb5 {[%clk 01:31:28]} {[%emt 00:00:07]} a6 {[%clk 01:33:40]}
{[%emt 00:01:00]} 13. O-O {[%clk 01:30:22]} {[%emt 00:01:35]} Qb7 {[%clk
01:33:24]} {[%emt 00:00:47]} 14. bxa6 {[%clk 01:24:29]} {[%emt 00:06:23]} Nxa6
{[%clk 01:20:53]} {[%emt 00:13:01]} 15. Ba3 {[%clk 01:22:56]} {[%emt 00:02:02]}
O-O {[%clk 01:18:16]} {[%emt 00:03:08]} 16. Qe2 {[%clk 01:20:28]} {[%emt
00:02:57]} Qc6 {[%clk 00:59:16]} {[%emt 00:19:31]} 17. Rfb1 {[%clk 01:10:40]}
{[%emt 00:10:18]} Nc7 {[%clk 00:55:29]} {[%emt 00:04:17]} 18. c4 {[%clk
01:07:55]} {[%emt 00:03:14]} Ra4 {[%clk 00:45:25]} {[%emt 00:10:35]} 19. Nd2
{[%clk 00:56:03]} {[%emt 00:12:20]} dxc4 {[%clk 00:33:55]} {[%emt 00:12:02]} 20.
dxc5 {[%clk 00:46:43]} {[%emt 00:09:50]} b5 {[%clk 00:30:49]} {[%emt 00:03:36]}
21. Ne4 {[%clk 00:39:16]} {[%emt 00:07:57]} Rfa8 {[%clk 00:29:38]} {[%emt
00:01:41]} 22. Bb2 {[%clk 00:38:17]} {[%emt 00:01:29]} Rxa1 {[%clk 00:29:49]}
{[%emt 00:00:19]} 23. Rxa1 {[%clk 00:38:10]} {[%emt 00:00:37]} Na6 {[%clk
00:28:14]} {[%emt 00:02:04]} 24. Qf3 {[%clk 00:29:56]} {[%emt 00:08:44]} Nc7
{[%clk 00:20:44]} {[%emt 00:08:01]} 25. Rd1 {[%clk 00:27:16]} {[%emt 00:03:10]}
Ned5 {[%clk 00:18:22]} {[%emt 00:02:52]} 26. Nd6 {[%clk 00:26:53]} {[%emt
00:00:53]} Rf8 {[%clk 00:17:35]} {[%emt 00:01:17]} 27. Bd4 {[%clk 00:26:10]}
{[%emt 00:01:13]} Qd7 {[%clk 00:15:39]} {[%emt 00:02:26]} 28. Ra1 {[%clk
00:25:20]} {[%emt 00:01:20]} Ra8 {[%clk 00:10:39]} {[%emt 00:05:29]} 29. Rxa8+
{[%clk 00:24:48]} {[%emt 00:01:02]} Nxa8 {[%clk 00:11:06]} {[%emt 00:00:04]} 30.
c6 {[%clk 00:24:49]} {[%emt 00:00:29]} Qc7 {[%clk 00:11:07]} {[%emt 00:00:29]}
31. g4 {[%clk 00:21:34]} {[%emt 00:03:45]} Nb4 {[%clk 00:08:50]} {[%emt
00:02:47]} 32. g5 {[%clk 00:17:04]} {[%emt 00:04:59]} hxg5 {[%clk 00:06:47]}
{[%emt 00:02:34]} 33. h6 {[%clk 00:16:12]} {[%emt 00:01:22]} gxh6 {[%clk
00:02:40]} {[%emt 00:04:35]} 34. Qf6 {[%clk 00:16:12]} {[%emt 00:00:31]} Nd5
{[%clk 00:01:45]} {[%emt 00:01:25]} 35. Qxh6 {[%clk 00:15:58]} {[%emt
00:00:44]} Qd8 {[%clk 00:00:41]} {[%emt 00:01:35]} 36. Kf1 {[%clk 00:03:47]}
{[%emt 00:12:41]} Nac7 {[%clk 00:00:47]} {[%emt 00:00:24]} 37. Ne4 {[%emt
00:01:15]} Qf8 {[%clk 00:00:32]} 38. Qxg5+ {[%clk 00:03:29]} {[%emt 00:00:47]}
Qg7 {[%clk 00:00:52]} {[%emt 00:00:11]} 39. Nf6+ {[%clk 00:02:03]} {[%emt
00:01:55]} Nxf6 {[%emt 00:00:42]} 40. Qxg7+ {[%clk 00:02:24]} {[%emt 00:00:03]}
Kxg7 {[%clk 00:01:16]} 41. exf6+ {[%clk 00:02:51]} {[%emt 00:00:03]} Kf8 {[%clk
00:01:16]} {[%emt 00:00:30]} 42. Be5 {[%clk 00:01:57]} {[%emt 00:01:24]} Nd5
{[%clk 00:01:34]} {[%emt 00:00:12]} 43. Ke2 {[%clk 00:00:50]} {[%emt 00:01:36]}
Ke8 {[%clk 00:01:48]} {[%emt 00:00:16]} 44. Kd2 {[%clk 00:00:34]} {[%emt
00:00:46]} Nb4 {[%clk 00:01:57]} {[%emt 00:00:22]} 45. c7 {[%clk 00:00:59]}
{[%emt 00:00:05]} Kd7 {[%clk 00:02:24]} {[%emt 00:00:03]} 46. Kc3 {[%clk
00:00:41]} {[%emt 00:00:47]} Nc6 {[%clk 00:02:50]} {[%emt 00:00:04]} 47. Bd6
{[%clk 00:00:45]} {[%emt 00:00:27]} Kc8 {[%clk 00:02:41]} {[%emt 00:00:39]} 48.
f4 {[%clk 00:00:56]} {[%emt 00:00:18]} Kd7 {[%clk 00:03:01]} {[%emt 00:00:10]}
49. Bb4 {[%clk 00:00:38]} {[%emt 00:00:47]} Kxc7 {[%clk 00:03:07]} {[%emt
00:00:25]} 50. Bc5 {[%clk 00:01:03]} {[%emt 00:00:04]} Nb8 {[%clk 00:02:43]}
{[%emt 00:00:55]} 51. Kd4 {[%clk 00:00:56]} {[%emt 00:00:36]} Kc6 {[%clk
00:03:05]} {[%emt 00:00:08]} 52. c3 {[%clk 00:01:04]} {[%emt 00:00:23]} Na6
{[%clk 00:02:41]} {[%emt 00:00:54]} 53. Ba7 {[%clk 00:00:40]} {[%emt 00:00:54]}
Kb7 {[%clk 00:02:39]} {[%emt 00:00:32]} 54. Bc5 {[%clk 00:00:49]} {[%emt
00:00:19]} Nxc5 {[%clk 00:02:32]} {[%emt 00:00:39]} 55. Kxc5 {[%clk 00:01:12]}
{[%emt 00:00:06]} Ka6 {[%clk 00:03:02]} 56. Kd6 {[%emt 00:00:43]} b4 {[%clk
00:03:19]} {[%emt 00:00:12]} 57. Ke7 {[%clk 00:01:24]} {[%emt 00:00:07]} b3
{[%clk 00:03:15]} {[%emt 00:00:33]} 58. Kxf7 {[%clk 00:01:47]} {[%emt
00:00:07]} b2 {[%clk 00:03:38]} {[%emt 00:00:07]} 59. Kxe6 {[%clk 00:01:42]}
{[%emt 00:00:35]} b1=Q {[%clk 00:04:04]} {[%emt 00:00:04]} 60. f7 {[%emt
00:00:27]} Qb6 {[%clk 00:04:19]} 61. Ke7 {[%clk 00:02:19]} {[%emt 00:00:12]}
Qc7+ {[%clk 00:04:44]} {[%emt 00:00:05]} 62. Ke8 {[%clk 00:02:34]} {[%emt
00:00:14]} Qc8+ {[%clk 00:04:46]} {[%emt 00:00:29]} 63. Ke7 {[%clk 00:02:54]}
{[%emt 00:00:10]} Qc5+ {[%clk 00:05:13]} {[%emt 00:00:03]} 64. Ke8 {[%clk
00:03:05]} {[%emt 00:00:18]} Qe3+ {[%emt 00:01:04]} 0-1

[Event "NJSK 2024 C"]
[Site "Groningen, Netherlands"]
[Date "2024.05.01"]
[Round "6.9"]
[White "Leenen, Boyd"]
[Black "Lalkota, Sai Pranav Tejas"]
[Result "1/2-1/2"]
[TimeControl "90min/40moves + 30min + 30sec/move"]
[WhiteElo "1920"]
[BlackElo "1782"]

1. d4 {[%clk 01:30:58]} {[%emt 00:00:02]} Nf6 {[%clk 01:26:13]} {[%emt
00:04:47]} 2. c4 {[%clk 01:31:18]} {[%emt 00:00:10]} c5 {[%clk 01:26:36]}
{[%emt 00:00:07]} 3. d5 {[%clk 01:31:32]} {[%emt 00:00:15]} b5 {[%clk
01:26:59]} {[%emt 00:00:08]} 4. cxb5 {[%clk 01:31:47]} {[%emt 00:00:15]} a6
{[%clk 01:27:23]} {[%emt 00:00:06]} 5. bxa6 {[%clk 01:32:13]} {[%emt 00:00:05]}
Bxa6 {[%clk 01:27:47]} {[%emt 00:00:05]} 6. Nc3 {[%clk 01:32:34]} {[%emt
00:00:08]} g6 {[%clk 01:27:56]} {[%emt 00:00:22]} 7. Nf3 {[%clk 01:32:48]}
{[%emt 00:00:15]} Bg7 {[%clk 01:27:48]} {[%emt 00:00:38]} 8. g3 {[%clk
01:29:56]} {[%emt 00:03:22]} d6 {[%clk 01:27:11]} {[%emt 00:01:07]} 9. Bg2
{[%clk 01:29:56]} {[%emt 00:00:31]} Nbd7 {[%clk 01:26:03]} {[%emt 00:01:37]} 10.
O-O {[%clk 01:29:52]} {[%emt 00:00:34]} O-O {[%clk 01:25:46]} {[%emt 00:00:48]}
11. Re1 {[%clk 01:29:57]} {[%emt 00:00:25]} Qc7 {[%clk 01:24:04]} {[%emt
00:02:11]} 12. e4 {[%clk 01:28:57]} {[%emt 00:01:30]} Rfb8 {[%clk 01:24:16]}
{[%emt 00:00:18]} 13. Qc2 {[%clk 01:27:50]} {[%emt 00:01:38]} Ng4 {[%clk
01:21:08]} {[%emt 00:03:38]} 14. Bf4 {[%clk 01:17:22]} {[%emt 00:10:58]} Nge5
{[%clk 01:20:01]} {[%emt 00:01:37]} 15. Bxe5 {[%clk 01:17:17]} {[%emt
00:00:35]} Nxe5 {[%clk 01:20:22]} {[%emt 00:00:09]} 16. Nxe5 {[%clk 01:16:59]}
{[%emt 00:00:47]} Bxe5 {[%clk 01:20:47]} {[%emt 00:00:06]} 17. Bf1 {[%clk
01:16:59]} {[%emt 00:00:31]} Bxf1 {[%clk 01:18:25]} {[%emt 00:02:51]} 18. Rxf1
{[%clk 01:17:20]} {[%emt 00:00:09]} Qa5 {[%clk 01:17:30]} {[%emt 00:01:24]} 19.
Rfc1 {[%clk 01:09:13]} {[%emt 00:08:37]} Kg7 {[%clk 01:15:14]} {[%emt
00:02:46]} 20. Kg2 {[%clk 00:49:49]} {[%emt 00:19:55]} h5 {[%clk 01:13:36]}
{[%emt 00:02:08]} 21. a3 {[%clk 00:46:49]} {[%emt 00:03:31]} Ra7 {[%clk
01:10:35]} {[%emt 00:03:30]} 22. Rab1 {[%clk 00:45:49]} {[%emt 00:01:30]} Rab7
{[%clk 01:10:32]} {[%emt 00:00:32]} 23. Nd1 {[%clk 00:38:39]} {[%emt 00:07:41]}
Rb3 {[%clk 01:08:30]} {[%emt 00:02:31]} 24. Qe2 {[%clk 00:36:39]} {[%emt
00:02:29]} Qb6 {[%clk 01:05:13]} {[%emt 00:03:49]} 25. Ne3 {[%clk 00:30:04]}
{[%emt 00:07:06]} Rxb2 {[%clk 01:01:43]} {[%emt 00:03:59]} 26. Rxb2 {[%clk
00:30:17]} {[%emt 00:00:16]} Qxb2 {[%clk 01:01:59]} {[%emt 00:00:15]} 27. Qxb2
{[%clk 00:30:30]} {[%emt 00:00:17]} Rxb2 {[%clk 01:02:23]} {[%emt 00:00:06]} 28.
Nc4 {[%clk 00:30:44]} {[%emt 00:00:16]} Ra2 {[%clk 01:02:16]} {[%emt 00:00:36]}
29. Nxe5 {[%clk 00:31:09]} {[%emt 00:00:05]} dxe5 {[%clk 01:02:40]} {[%emt
00:00:07]} 30. Rc3 {[%clk 00:30:11]} {[%emt 00:01:27]} Kf8 {[%clk 01:02:34]}
{[%emt 00:00:36]} 31. Rxc5 {[%clk 00:30:02]} {[%emt 00:00:40]} Rxa3 {[%clk
01:02:57]} {[%emt 00:00:07]} 32. Rc8+ {[%clk 00:30:26]} {[%emt 00:00:05]} Kg7
{[%clk 01:03:17]} {[%emt 00:00:10]} 33. h4 {[%clk 00:30:22]} {[%emt 00:00:34]}
Ra4 {[%clk 01:02:38]} {[%emt 00:01:09]} 34. Rc7 {[%clk 00:29:45]} {[%emt
00:01:07]} Rxe4 {[%clk 01:02:23]} {[%emt 00:00:46]} 35. Rxe7 {[%clk 00:30:07]}
{[%emt 00:00:08]} Kf6 {[%clk 01:02:25]} {[%emt 00:00:29]} 36. Ra7 {[%clk
00:30:15]} {[%emt 00:00:22]} Rd4 {[%clk 01:01:32]} {[%emt 00:01:22]} 37. Ra6+
{[%clk 00:30:26]} {[%emt 00:00:19]} Kf5 {[%clk 01:01:25]} {[%emt 00:00:37]} 38.
Rd6 {[%clk 00:29:44]} {[%emt 00:01:11]} Rd2 {[%clk 01:00:02]} {[%emt 00:01:53]}
39. Rd7 {[%emt 00:00:16]} e4 1/2-1/2

[Event "NJSK 2024 C"]
[Site "Groningen, Netherlands"]
[Date "2024.05.01"]
[Round "6.10"]
[White "Frederiks, Jesse"]
[Black "Koppenens, Oscar"]
[Result "1/2-1/2"]
[TimeControl "90min/40moves + 30min + 30sec/move"]
[WhiteElo "1718"]
[BlackElo "1893"]

1. d4 {[%clk 01:30:51]} {[%emt 00:00:08]} Nf6 {[%clk 01:30:56]} {[%emt
00:00:05]} 2. c4 {[%clk 01:31:12]} {[%emt 00:00:08]} g6 {[%clk 01:31:24]}
{[%emt 00:00:03]} 3. Nc3 {[%clk 01:31:37]} {[%emt 00:00:05]} d5 {[%clk
01:31:51]} {[%emt 00:00:03]} 4. Nf3 {[%clk 01:30:53]} {[%emt 00:01:14]} Bg7
{[%clk 01:31:31]} {[%emt 00:00:50]} 5. e3 {[%clk 01:30:54]} {[%emt 00:00:28]}
dxc4 {[%clk 01:29:04]} {[%emt 00:02:59]} 6. Bxc4 {[%clk 01:31:12]} {[%emt
00:00:11]} c5 {[%clk 01:27:59]} {[%emt 00:01:35]} 7. Bd2 {[%clk 01:26:46]}
{[%emt 00:04:56]} cxd4 {[%clk 01:28:13]} {[%emt 00:00:16]} 8. Nxd4 {[%clk
01:27:09]} {[%emt 00:00:07]} O-O {[%clk 01:27:29]} {[%emt 00:01:12]} 9. O-O
{[%clk 01:26:37]} {[%emt 00:01:02]} a6 {[%clk 01:27:04]} {[%emt 00:00:57]} 10.
h3 {[%clk 01:24:13]} {[%emt 00:02:53]} b5 {[%clk 01:26:55]} {[%emt 00:00:39]}
11. Be2 {[%clk 01:24:26]} {[%emt 00:00:17]} Bb7 {[%clk 01:26:42]} {[%emt
00:00:43]} 12. Bf3 {[%clk 01:01:45]} {[%emt 00:23:11]} Bxf3 {[%clk 01:24:30]}
{[%emt 00:02:43]} 13. Nxf3 {[%clk 01:02:07]} {[%emt 00:00:08]} Nbd7 {[%clk
01:24:19]} {[%emt 00:00:40]} 14. Ne2 {[%clk 00:52:51]} {[%emt 00:09:46]} Ne4
{[%clk 01:22:00]} {[%emt 00:02:50]} 15. Bc3 {[%clk 00:51:24]} {[%emt 00:01:57]}
Nxc3 {[%clk 01:22:12]} {[%emt 00:00:18]} 16. Nxc3 {[%clk 00:51:00]} {[%emt
00:00:54]} Rc8 {[%clk 01:20:27]} {[%emt 00:02:15]} 17. Rc1 {[%clk 00:48:09]}
{[%emt 00:03:22]} Nc5 {[%clk 01:18:20]} {[%emt 00:02:32]} 18. Qe2 {[%clk
00:47:13]} {[%emt 00:01:30]} Qd3 {[%clk 01:16:05]} {[%emt 00:02:45]} 19. Rfd1
{[%clk 00:42:52]} {[%emt 00:04:51]} Qxe2 {[%clk 01:16:21]} {[%emt 00:00:15]} 20.
Nxe2 {[%clk 00:43:19]} {[%emt 00:00:04]} Bxb2 {[%clk 01:16:40]} {[%emt
00:00:10]} 21. Rc2 {[%clk 00:43:27]} {[%emt 00:00:22]} Na4 {[%clk 01:15:25]}
{[%emt 00:01:44]} 22. Rcd2 {[%clk 00:42:29]} {[%emt 00:01:28]} e5 {[%clk
01:14:10]} {[%emt 00:01:46]} 23. Rd6 {[%clk 00:42:09]} {[%emt 00:00:49]} e4
{[%clk 01:14:09]} {[%emt 00:00:32]} 24. Nfd4 {[%clk 00:42:16]} {[%emt
00:00:23]} Nc5 {[%clk 01:13:25]} {[%emt 00:01:14]} 25. Nb3 {[%clk 00:39:07]}
{[%emt 00:03:39]} Be5 {[%clk 01:11:05]} {[%emt 00:02:50]} 26. Nxc5 {[%clk
00:37:19]} {[%emt 00:02:18]} Bxd6 {[%clk 01:09:16]} {[%emt 00:02:20]} 27. Nd7
{[%clk 00:37:40]} {[%emt 00:00:08]} Bb8 {[%clk 01:06:20]} {[%emt 00:03:25]} 28.
Nxf8 {[%clk 00:37:33]} {[%emt 00:00:38]} Kxf8 {[%clk 01:06:44]} {[%emt
00:00:06]} 29. Rd2 {[%clk 00:36:03]} {[%emt 00:01:59]} Ke7 {[%clk 01:06:44]}
{[%emt 00:00:31]} 30. Kf1 {[%clk 00:34:50]} {[%emt 00:01:42]} Be5 {[%clk
01:05:33]} {[%emt 00:01:41]} 31. Nd4 {[%clk 00:30:22]} {[%emt 00:04:59]} f5
{[%clk 01:03:31]} {[%emt 00:02:32]} 32. Nb3 {[%clk 00:28:44]} {[%emt 00:02:07]}
Bc3 {[%clk 00:55:29]} {[%emt 00:08:32]} 33. Rc2 {[%clk 00:27:15]} {[%emt
00:01:59]} Rc4 {[%clk 00:55:33]} {[%emt 00:00:26]} 34. Ke2 {[%clk 00:24:11]}
{[%emt 00:03:35]} a5 {[%clk 00:55:31]} {[%emt 00:00:33]} 35. a4 {[%clk
00:22:23]} {[%emt 00:02:17]} bxa4 {[%clk 00:55:29]} {[%emt 00:00:32]} 36. Nxa5
{[%clk 00:22:11]} {[%emt 00:00:41]} Rc7 {[%clk 00:55:29]} {[%emt 00:00:30]} 37.
Nb7 {[%clk 00:21:59]} {[%emt 00:00:43]} a3 {[%clk 00:55:37]} {[%emt 00:00:22]}
38. f3 {[%clk 00:21:36]} {[%emt 00:00:53]} a2 {[%clk 00:55:32]} {[%emt
00:00:35]} 39. Rxa2 {[%clk 00:21:57]} {[%emt 00:00:09]} Rxb7 {[%clk 00:55:57]}
{[%emt 00:00:06]} 40. fxe4 {[%clk 00:20:56]} {[%emt 00:01:31]} Rb2+ {[%clk
00:56:05]} {[%emt 00:00:22]} 41. Rxb2 {[%clk 00:21:20]} {[%emt 00:00:05]} Bxb2
{[%clk 00:56:30]} {[%emt 00:00:05]} 42. exf5 {[%clk 00:21:45]} {[%emt
00:00:04]} gxf5 {[%clk 00:56:48]} {[%emt 00:00:12]} 43. g4 {[%clk 00:22:12]}
{[%emt 00:00:04]} fxg4 {[%clk 00:56:50]} {[%emt 00:00:28]} 44. hxg4 {[%clk
00:22:37]} {[%emt 00:00:05]} Kf6 {[%clk 00:57:15]} {[%emt 00:00:05]} 45. Kf2
{[%clk 00:23:00]} {[%emt 00:00:06]} Kg5 {[%clk 00:57:34]} {[%emt 00:00:12]} 46.
Kg2 {[%clk 00:23:25]} {[%emt 00:00:04]} Kxg4 {[%clk 00:57:56]} {[%emt
00:00:09]} 47. Kh1 {[%clk 00:23:50]} {[%emt 00:00:04]} Be5 {[%clk 00:58:06]}
{[%emt 00:00:20]} 48. e4 {[%clk 00:24:11]} {[%emt 00:00:09]} Kf3 {[%clk
00:58:30]} {[%emt 00:00:07]} 49. Kg1 {[%clk 00:24:35]} {[%emt 00:00:05]} h5
{[%clk 00:57:33]} {[%emt 00:01:28]} 50. Kh1 {[%clk 00:24:59]} {[%emt 00:00:06]}
h4 {[%clk 00:57:04]} {[%emt 00:00:59]} 51. Kg1 {[%clk 00:25:24]} {[%emt
00:00:05]} Kg3 {[%clk 00:56:00]} {[%emt 00:01:34]} 52. Kh1 {[%clk 00:25:52]}
{[%emt 00:00:01]} Bf6 {[%clk 00:56:18]} {[%emt 00:00:13]} 53. e5 {[%clk
00:26:15]} {[%emt 00:00:08]} Be7 {[%clk 00:56:45]} {[%emt 00:00:03]} 54. e6
{[%clk 00:26:39]} {[%emt 00:00:04]} h3 {[%clk 00:57:12]} {[%emt 00:00:04]} 55.
Kg1 {[%clk 00:27:05]} {[%emt 00:00:04]} h2+ {[%clk 00:57:15]} {[%emt 00:00:26]}
56. Kh1 {[%clk 00:27:31]} {[%emt 00:00:04]} Kh3 {[%clk 00:57:36]} {[%emt
00:00:09]} 1/2-1/2